Cogmind - Beta 15 @@@ ROGUE MODE // 2025.07.25 @ 10:26:38 Player: FenRhew Result: Destroyed by G-50 Soldier with Heavy Laser Performance ------------- Evolutions (1) 500 Regions Visited (6) 1200 Robots Destroyed (57) 285 Value Destroyed (1280) 1280 Prototype IDs (30) 600 Alien Tech Used (0) 0 Bonus (423) 423 TOTAL SCORE: 4288 Bonus ------- Follower Combat Kills 123 Aligned with FarCom 300 Cogmind --------- Core Integrity 0/400 Matter 294/300 Energy 265/265 System Corruption 0% Temperature Cool (10) Movement Treading (320) Ox2 Location -8/Mines Parts ------- > --- POWER (1) -------- Improved Ion Engine > --- PROPULSION (2) --- Light Treads Improved Treads > --- UTILITY (4) ------ Huge Storage Unit Advanced Targeting Computer Advanced Targeting Computer Light Armor Plating > --- WEAPON (2) ------- Improved Assault Rifle Improved Assault Rifle > --- INVENTORY (25) --- Cooled Ion Engine Cooled Ion Engine Light Treads Scrap Suit Improved Heat Sink Small Storage Unit Structural Scanner Visual Processing Unit Signal Interpreter Improved Terrain Scanner Terrain Scan Processor Advanced Targeting Computer Cloak of Protection Medium Armor Plating Improved EM Shotgun Improved EM Shotgun Improved Medium Laser Improved Medium Laser Improved Assault Rifle Improved Grenade Launcher Improved Grenade Launcher Proton Bomb Trap Proton Bomb Trap Proton Bomb Trap Peak State ------------ > --- POWER ------------ Improved Ion Engine > --- PROPULSION ------- Light Treads Improved Treads > --- UTILITY ---------- Huge Storage Unit Advanced Targeting Computer Advanced Targeting Computer Light Armor Plating > --- WEAPON ----------- Improved Assault Rifle Improved Assault Rifle > --- INVENTORY -------- Cooled Ion Engine Cooled Ion Engine Light Treads Scrap Suit Improved Heat Sink Small Storage Unit Structural Scanner Visual Processing Unit Signal Interpreter Improved Terrain Scanner Terrain Scan Processor Advanced Targeting Computer Cloak of Protection Medium Armor Plating Improved EM Shotgun Improved EM Shotgun Improved Medium Laser Improved Medium Laser Improved Assault Rifle Improved Grenade Launcher Improved Grenade Launcher Proton Bomb Trap Proton Bomb Trap Proton Bomb Trap [Rating: 25] Favorites ----------- Power Light Ion Engine Engine Light Ion Engine Propulsion Light Treads Treads Light Treads Leg Aluminum Leg Wheel Wheel Utility Advanced Targeting Computer Device Improved Heat Sink Storage Huge Storage Unit Processor Advanced Targeting Computer Protection Light Armor Plating Weapon Improved Assault Rifle Energy Gun EM Pulse Gun Energy Cannon Light EM Pulse Cannon Ballistic Gun Improved Assault Rifle Launcher Grenade Launcher Build | -11 -10 -10 -9 -9 -9 -8 ------- Run | Yrd Mat Min Mat Min Exi Min Slots Evolved 2 | . . . 2 . . . Power . | . . . . . . . Propulsion . | . . . . . . . Utility 2 | . . . 2 . . . Weapon . | . . . . . . . Parts Attached 58 | 6 10 6 34 2 . . Power 9 | 1 1 1 6 . . . Engine 9 | 1 1 1 6 . . . Core . | . . . . . . . Reactor . | . . . . . . . Propulsion 18 | 2 5 2 8 1 . . Treads 12 | 2 1 . 8 1 . . Leg 2 | . 2 . . . . . Wheel 4 | . 2 2 . . . . Hover . | . . . . . . . Flight . | . . . . . . . Utility 12 | 1 2 1 7 1 . . Device 1 | . 1 . . . . . Storage 2 | 1 1 . . . . . Processor 6 | . . 1 5 . . . Hackware . | . . . . . . . Protection 3 | . . . 2 1 . . Artifact . | . . . . . . . Weapon 19 | 2 2 2 13 . . . Energy Gun 5 | 2 1 . 2 . . . Energy Cannon 2 | . . . 2 . . . Ballistic Gun 10 | . . 2 8 . . . Ballistic Cannon . | . . . . . . . Launcher 2 | . 1 . 1 . . . Special Weapon . | . . . . . . . Impact Weapon . | . . . . . . . Slashing Weapon . | . . . . . . . Piercing Weapon . | . . . . . . . Special Melee Weapon . | . . . . . . . Unidentified Prototypes 2 | . . . 2 . . . Parts Lost 27 | . 4 2 21 . . . Power 6 | . 1 1 4 . . . Propulsion 8 | . 1 . 7 . . . Utility 2 | . . 1 1 . . . Weapon 11 | . 2 . 9 . . . Highest Loss Streak 16 | . 4 2 16 . . . To Critical Strikes 1 | . . . 1 . . . Average Backups 18 | 2 7 16 21 21 21 21 Power 1 | . . . 2 2 2 2 Propulsion 2 | 1 2 3 3 1 1 1 Utility 10 | . 1 10 11 11 11 11 Weapon 4 | . 1 1 4 7 7 7 Tool/Special . | . . . . . . . Unused Backups 26 | . 1 . 5 1 1 18 Power 4 | . . . 2 . . 2 Propulsion 1 | . 1 . . . . . Utility 14 | . . . 2 1 1 10 Weapon 7 | . . . 1 . . 6 Tool/Special . | . . . . . . . Average Slot Usage (%) 96 | . 91 97 95 100 100 100 Engine 10 | . 13 14 7 11 11 11 Treads 16 | . 21 . 15 22 22 22 Wheel 6 | . 4 28 6 . . . Device 2 | . 10 8 . . . . Storage 11 | . 14 14 11 11 11 11 Processor 20 | . . 2 29 22 22 22 Protection 5 | . . . 3 10 11 11 Energy Gun 2 | . 22 . . . . . Ballistic Gun 19 | . . 24 20 22 22 22 Peak Build Rating 25 | 6 10 12 24 24 25 25 Average Rating 17 | 4 7 10 18 23 24 25 On Entrance 14 | . 6 10 10 23 24 25 Naked Turns . | . . . . . . . Heaviest Build 96 | 14 89 89 93 96 96 96 Greatest Support 44 | 40 40 26 44 43 43 43 Greatest Overweight (x) 9 | . 5 4 9 2 2 2 Average Overweight (x) 2 | . 1 3 2 2 2 2 Largest Inventory Capacity 25 | 8 25 25 25 25 25 25 Average Capacity 23 | 6 13 25 25 25 25 25 Most Carried 25 | 5 11 20 25 25 25 25 Average Carried 20 | 2 7 17 22 24 24 25 Final Capacity 25 | 8 25 25 25 25 25 25 Final Carried 25 | 5 11 19 23 25 25 25 Class Distribution -------------------- 63% | Scavenger-Mutant 36% | Mutant Dominant Class ---------------- Mutant | -10/Materials Scavenger-Mutant | -10/Mines Scavenger-Mutant | -9/Materials Scavenger-Mutant | -9/Mines Mutant | -9/Exiles Mutant | -8/Mines Resources | -11 -10 -10 -9 -9 -9 -8 ----------- Run | Yrd Mat Min Mat Min Exi Min Matter Collected 1337 | 34 436 91 697 79 . . Remotely . | . . . . . . . Salvage Created 1625 | . 499 87 1039 . . . Parts 127 | . 40 4 83 . . . Haulers Intercepted 5 | . 1 . 4 . . . Recyclers Shooed . | . . . . . . . Parts Field Recycled . | . . . . . . . Retrieved Matter . | . . . . . . . Parts Self-Destructed . | . . . . . . . Prevented . | . . . . . . . Kills | -11 -10 -10 -9 -9 -9 -8 ------- Run | Yrd Mat Min Mat Min Exi Min Combat Hostiles Destroyed 47 | . 13 6 28 . . . Guns 30 | . 11 6 13 . . . Cannons 2 | . . . 2 . . . AOE 15 | . 2 . 13 . . . Classes Destroyed 8 | . 6 1 1 . . . Worker 3 | . 1 . 2 . . . Tunneler 1 | . 1 . . . . . Hauler 5 | . 1 . 4 . . . Watcher 4 | . 2 . 2 . . . Swarmer 18 | . 6 3 9 . . . Grunt 20 | . 7 . 13 . . . Sentry 6 | . . . 6 . . . Assembled 3 | . . 3 . . . . Best Kill Streak 10 | . 6 3 10 . . . Combat Bots Only 10 | . 5 3 10 . . . Max Kills in Single Turn 4 | . 4 1 4 . . . Gunslinging . | . . . . . . . Exploded 4 | . 2 . 4 . . . Melee . | . . . . . . . Uniques/NPCs Destroyed . | . . . . . . . Combat | -11 -10 -10 -9 -9 -9 -8 -------- Run | Yrd Mat Min Mat Min Exi Min Hostile Shots Fired 373 | . 90 26 252 1 . 4 Missed 90 | . 25 2 62 . . 1 Hits 283 | . 65 24 190 1 . 3 Projectile 283 | . 65 24 190 1 . 3 Critical Strikes 4 | . . . 4 . . . Damage Taken 3397 | . 640 233 2399 69 . 56 Core 527 | . 86 35 388 . . 18 Absorbed by Shields . | . . . . . . . Core Remaining (%) 75 | 100 . 51 . . . . Volleys Fired 159 | . 47 24 87 . . 1 Largest 2 | . 2 2 2 . . 2 Hottest 90 | . 90 40 79 . . 46 Shots Fired 286 | . 83 35 166 . . 2 Gun 274 | . 81 35 156 . . 2 Cannon 3 | . . . 3 . . . Launcher 9 | . 2 . 7 . . . Special . | . . . . . . . Kinetic 186 | . . 35 149 . . 2 Thermal 45 | . 39 . 6 . . . Explosive 9 | . 2 . 7 . . . Electromagnetic 46 | . 42 . 4 . . . Robot Hit Streak 20 | . 9 8 20 . . 7 Robot Miss Streak 3 | . 3 2 2 . . . Penetration Max . | . . . . . . . Secondary Targets 4 | . 3 . 1 . . . Max Gunslinging Chain 1 | . 1 . 1 . . . Shots Hit Robots 195 | . 53 23 117 . . 2 Core Hits 103 | . 25 13 64 . . 1 Critical Kills 2 | . . 1 1 . . . Critical Parts Destroyed . | . . . . . . . Critical Strikes 5 | . 3 1 1 . . . Burn 2 | . 2 . . . . . Destroy 2 | . . 1 1 . . . Corrupt 1 | . 1 . . . . . Melee Attacks . | . . . . . . . Impact . | . . . . . . . Slashing . | . . . . . . . Piercing . | . . . . . . . Sneak Attacks . | . . . . . . . Combat Hostiles . | . . . . . . . Follow-up Attacks . | . . . . . . . Damage Inflicted 3470 | . 994 191 2257 . . 28 Guns 2111 | . 690 191 1202 . . 28 Cannons 40 | . . . 40 . . . Explosions 1319 | . 304 . 1015 . . . Melee . | . . . . . . . Ramming . | . . . . . . . Kinetic 1343 | . . 191 1124 . . 28 Thermal 425 | . 358 . 67 . . . Explosive 1287 | . 272 . 1015 . . . Electromagnetic 415 | . 364 . 51 . . . Impact . | . . . . . . . Slashing . | . . . . . . . Piercing . | . . . . . . . Highest Corruption . | . . . . . . . Average Corruption . | . . . . . . . Corruption Purged . | . . . . . . . Corruption Blocked . | . . . . . . . Overload Shots . | . . . . . . . Overflow Damage 17 | . . . 17 . . . Projectiles . | . . . . . . . Explosions 17 | . . . 17 . . . Melee . | . . . . . . . Knockbacks . | . . . . . . . Impact . | . . . . . . . Kinetic . | . . . . . . . Secondary . | . . . . . . . Self-Inflicted Damage 88 | . . . 88 . . . Shots 5 | . . . 5 . . . Rammed . | . . . . . . . Targets Rammed . | . . . . . . . Kicked . | . . . . . . . Crushed . | . . . . . . . Highest Temperature 427 | . 427 . 58 . . 5 Average Temperature 98 | . 173 . 13 . . 3 Received Heat Transfer 1164 | . 252 . 879 6 . 27 Effects 5 | . 5 . . . . . Energy Bleed 2 | . 2 . . . . . Interference 3 | . 3 . . . . . Siege Activations . | . . . . . . . Martial Activations . | . . . . . . . Shielding Activations . | . . . . . . . Robots Disrupted . | . . . . . . . Combat Hostiles . | . . . . . . . Robots Corrupted . | . . . . . . . Combat Hostiles . | . . . . . . . Parts Fried . | . . . . . . . Impact Corruptions . | . . . . . . . Robots Melted . | . . . . . . . Combat Hostiles . | . . . . . . . Parts Melted 2 | . 2 . . . . . Heat Transferred 1310 | . 1160 . 150 . . . Parts Sabotaged . | . . . . . . . Parts Stolen . | . . . . . . . Parts Stripped . | . . . . . . . Power Chain Reactions 1 | . 1 . . . . . Alert | -11 -10 -10 -9 -9 -9 -8 ------- Run | Yrd Mat Min Mat Min Exi Min Maximum Alert Level 1 | . . . 1 . . . Low Security (%) 90 | 100 100 100 79 100 . 100 Level 1 9 | . . . 20 . . . Level 2 . | . . . . . . . Level 3 . | . . . . . . . Level 4 . | . . . . . . . Level 5 . | . . . . . . . High Security . | . . . . . . . Max Security . | . . . . . . . Peak Influence 335 | . 137 60 335 113 . 22 Initial 46 | . . 46 . 35 . . Average 70 | . 43 8 126 22 . 4 Influence Increases 1494 | . 386 70 839 177 . 22 Destroy 0b10 Robot/C 1020 | . 260 60 560 120 . 20 Destroy 0b10 Robot/NC 65 | . 25 . 40 . . . Destroy Leader 208 | . 46 10 132 20 . . Allied During Kill 30 | . . . 6 22 . 2 Successful Hack 33 | . 10 . 23 . . . Disable Machine 60 | . 15 . 30 15 . . Destroy Structure 48 | . 15 . 33 . . . Lose Combat Pursuer 30 | . 15 . 15 . . . Influence Decreases 1494 | . 265 191 748 245 23 22 Entered New Map 154 | . . 75 . 56 23 . Time Decay 1048 | . 225 116 518 189 . . Lost Part 250 | . 40 . 210 . . . Lost Ally 42 | . . . 20 . . 22 Squads Dispatched 5 | . 2 . 3 . . . Investigation 3 | . 1 . 2 . . . Extermination . | . . . . . . . Reinforcement 2 | . 1 . 1 . . . Assault . | . . . . . . . Garrison . | . . . . . . . Intercept . | . . . . . . . Searches Triggered . | . . . . . . . Construction Impeded . | . . . . . . . Haulers Reinforced . | . . . . . . . Active Scanning Responses . | . . . . . . . Cargo Convoy Interrupts . | . . . . . . . Stealth | -11 -10 -10 -9 -9 -9 -8 --------- Run | Yrd Mat Min Mat Min Exi Min Distress Signals 3 | . 1 . 2 . . . Communications Jammed . | . . . . . . . Distress Signals . | . . . . . . . Times Spotted 80 | . 17 6 48 6 . 3 Peak Tracking Total 12 | . 6 3 12 4 . 3 Tactical Retreats 2 | . 1 . 1 . . . Traps | -11 -10 -10 -9 -9 -9 -8 ------- Run | Yrd Mat Min Mat Min Exi Min Traps Triggered 3 | . 1 . 1 1 . . Indirectly . | . . . . . . . Trap Hack Attempts . | . . . . . . . Triggered . | . . . . . . . Disarmed . | . . . . . . . Reprogrammed . | . . . . . . . Reused . | . . . . . . . Traps Extracted . | . . . . . . . Installed . | . . . . . . . Triggered . | . . . . . . . Most Traps Carried 3 | . . . . 3 3 3 Machines | -11 -10 -10 -9 -9 -9 -8 ---------- Run | Yrd Mat Min Mat Min Exi Min Machines Disabled 4 | . 1 . 2 1 . . Max in Single Turn 1 | . 1 . 1 . . . Machines Repaired . | . . . . . . . Machines Dismantled . | . . . . . . . Machines Sabotaged . | . . . . . . . Overloaded Fab Kills . | . . . . . . . Hacking | -11 -10 -10 -9 -9 -9 -8 --------- Run | Yrd Mat Min Mat Min Exi Min Machines Accessed 12 | . 2 1 5 2 2 . Terminals 7 | . 2 1 3 1 . . Fabricators . | . . . . . . . Repair Stations 1 | . . . 1 . . . Recycling Units . | . . . . . . . Scanalyzers 1 | . . . 1 . . . Garrison Access . | . . . . . . . Total Hacks 28 | . 10 2 11 3 2 . Successful 14 | . 4 . 6 2 2 . Failed 14 | . 6 2 5 1 . . Catastrophic 3 | . 1 . 2 . . . Database Lockouts . | . . . . . . . Manual 18 | . 7 2 6 2 1 . Terminals 22 | . 10 2 8 2 . . Fabricators . | . . . . . . . Repair Stations 1 | . . . 1 . . . Recycling Units . | . . . . . . . Scanalyzers 2 | . . . 2 . . . Garrison Access . | . . . . . . . Terminal Hacks 12 | . 4 . 4 2 2 . Record 1 | . . . . . 1 . Part Schematic 1 | . 1 . . . . . Prototype ID Bank 3 | . 1 . 1 1 . . Open Door 1 | . . . . 1 . . Branch Access Points 1 | . . . 1 . . . Locate Traps 1 | . . . 1 . . . Hauler Manifests 3 | . 2 . 1 . . . Proto ID Catalog 1 | . . . . . 1 . Fabricator Hacks . | . . . . . . . Repair Station Hacks . | . . . . . . . Recycling Unit Hacks . | . . . . . . . Scanalyzer 2 | . . . 2 . . . Insert Component 1 | . . . 1 . . . Analyze 1 | . . . 1 . . . Garrison Access Hacks . | . . . . . . . Unauthorized Hacks . | . . . . . . . Terminals . | . . . . . . . Fabricators . | . . . . . . . Repair Stations . | . . . . . . . Recycling Units . | . . . . . . . Scanalyzers . | . . . . . . . Garrison Access . | . . . . . . . Data Cores Recovered . | . . . . . . . Used . | . . . . . . . Hacking Detections 8 | . 2 1 4 1 . . Full Trace Events 2 | . . 1 1 . . . Feedback Events . | . . . . . . . Feedback Blocked . | . . . . . . . Robot Schematics Acquired . | . . . . . . . Robots Built . | . . . . . . . Authchips . | . . . . . . . Time . | . . . . . . . Total Robot Build Rating . | . . . . . . . Part Schematics Acquired 2 | . 1 . 1 . . . Parts Built . | . . . . . . . Authchips . | . . . . . . . Time . | . . . . . . . Total Part Build Rating . | . . . . . . . Parts Repaired . | . . . . . . . Time . | . . . . . . . Parts Recycled . | . . . . . . . Recycled Matter . | . . . . . . . Retrieved Matter . | . . . . . . . Retrieved Components . | . . . . . . . Parts Scanalyzed 1 | . . . 1 . . . Part Schematics Acquired 1 | . . . 1 . . . Parts Damaged . | . . . . . . . Bothacking | -11 -10 -10 -9 -9 -9 -8 ------------ Run | Yrd Mat Min Mat Min Exi Min Used RIF Installer . | . . . . . . . Robots Hacked . | . . . . . . . Non-combat . | . . . . . . . Combat . | . . . . . . . Robot Hacks Applied . | . . . . . . . Relay Couplers Released . | . . . . . . . Fabnet Peak Effective % . | . . . . . . . Robots Rewired . | . . . . . . . Allies Hacked . | . . . . . . . Hacks Repelled . | . . . . . . . Allies | -11 -10 -10 -9 -9 -9 -8 -------- Run | Yrd Mat Min Mat Min Exi Min Total Allies 5 | . . 2 . 3 . . Largest Group 3 | . . 2 1 3 3 2 Highest-Rated Group 46 | . . 46 15 40 40 24 Highest-Rated Ally 31 | . . 31 15 16 16 16 Total Orders . | . . . . . . . Ally Attacks 36 | . . 7 . 21 . 8 Total Damage 309 | . . 62 . 158 . 89 Kills 8 | . . 1 . 6 . 1 Allies Corrupted . | . . . . . . . Allies Melted . | . . . . . . . Intel | -11 -10 -10 -9 -9 -9 -8 ------- Run | Yrd Mat Min Mat Min Exi Min Active Infowar (turns) 1309 | . . . 1232 77 . . T.N.C. 1309 | . . . 1232 77 . . Robot Analysis Total . | . . . . . . . Derelict Logs Recovered 1 | . . . . 1 . . Drone Launches . | . . . . . . . Drone Recoveries . | . . . . . . . Exploration | -11 -10 -10 -9 -9 -9 -8 ------------- Run | Yrd Mat Min Mat Min Exi Min Turns Passed 5718 | 92 566 800 2318 1195 735 12 Spaces Moved 2058 | 52 224 454 725 371 230 2 Core 4 | 4 . . . . . . Treads 1216 | 48 129 . 436 371 230 2 Legs 11 | . 11 . . . . . Wheels 827 | . 84 454 289 . . . Hover . | . . . . . . . Flight . | . . . . . . . Fastest Speed 50 | 50 135 135 135 320 320 320 Average Speed 233 | 151 169 138 246 320 320 320 Slowest Speed 480 | 160 480 140 480 320 320 320 Overloaded Moves . | . . . . . . . Propulsion Burnouts . | . . . . . . . Robots Hopped . | . . . . . . . Potential Cave-ins . | . . . . . . . Cave-ins Triggered . | . . . . . . . Exploration Rate (%) 41 | 4 27 73 47 77 61 2 Regions Visited 6 Branch Regions 4 Pre-discovered Areas . | . . . . . . . Known Exits Taken 2 | . . 1 1 . . . Unknown Exits Taken 4 | 1 1 . . 1 1 . Scrap Searched 3 | . . 1 . 2 . . Spaces Dug 3 | . . . 3 . . . Terrain Destroyed 43 | . 13 . 30 . . . Melee . | . . . . . . . Projectile . | . . . . . . . AOE 43 | . 13 . 30 . . . Terrain Rammed . | . . . . . . . Walls Destroyed . | . . . . . . . Machines Disabled . | . . . . . . . Actions | -11 -10 -10 -9 -9 -9 -8 --------- Run | Yrd Mat Min Mat Min Exi Min Total 2716 | 62 327 598 1110 382 231 6 Wait 346 | . 31 108 201 3 . 3 Move 2052 | 51 223 453 724 370 229 2 Hop . | . . . . . . . Pick Up 55 | 5 11 6 28 4 1 . Fast Attach 24 | 6 3 1 14 . . . Attach 26 | . 4 2 19 1 . . Detach 5 | . . 1 4 . . . Swap 22 | . 4 3 14 1 . . Drop 27 | . 4 . 19 3 1 . Fire 159 | . 47 24 87 . . 1 Melee . | . . . . . . . Ram . | . . . . . . . Kick . | . . . . . . . Crush . | . . . . . . . Escape Stasis . | . . . . . . . Rewire . | . . . . . . . Trap . | . . . . . . . Miscellaneous . | . . . . . . . Route ------- -11/Scrapyard -10/Materials (discovered 2 exits: *Mat / *Min) -10/Mines (discovered 2 exits: *Mat x2) -9/Materials (discovered 2 exits: *Mat / *Min) -9/Mines (discovered 3 exits: *Mat x2 / *Exi) -9/Exiles -8/Mines History --------- Turn | Location | Event 5 | -11/Scrapyard | Discovered new exit (range 16) 93 | -11/Scrapyard | Entered Materials 304 | -10/Materials | Build established: Mutant 383 | -10/Materials | Discovered new exit (range 14) 473 | -10/Materials | Lost 4 parts (1p1n2w) 611 | -10/Materials | Discovered new exit (range 9) 659 | -10/Materials | Entered Mines 660 | -10/Mines | Assembled infested the area 754 | -10/Mines | Found a Scrap Suit stashed away for nefarious purposes 756 | -10/Mines | Found Scrap Suit 958 | -10/Mines | Discovered new exit (range 15) 1086 | -10/Mines | Build established: Scavenger-Mutant 1271 | -10/Mines | Discovered new exit (range 7) 1282 | -10/Mines | Identified exit to Materials 1459 | -10/Mines | Entered Materials 1459 | -9/Materials | Accompanied by 1 ally 1459 | -9/Materials | Evolved 2 slots: Utility x2 1470 | -9/Materials | Identified exit to Mines 1992 | -9/Materials | Discovered new exit (range 13) 2036 | -9/Materials | Core integrity fell below 50% 2043 | -9/Materials | Destroyed 10 combat bots 2151 | -9/Materials | Identified exit to Materials 2152 | -9/Materials | Lost 16 parts (2p5n9w) 2158 | -9/Materials | Core integrity fell below 20% 2272 | -9/Materials | Lost 3 parts (1p2n) 3777 | -9/Materials | Entered Mines 3784 | -9/Mines | Assisted by bots powering up and referring to "LRC-V3" 3810 | -9/Mines | Met a Derelict bent on vengeance 3879 | -9/Mines | Met a Derelict who couldn't figure out how to use a Trap Extractor 3930 | -9/Mines | Discovered exit to Materials (range 8) 4023 | -9/Mines | Found a hidden stash of uninstalled traps 4650 | -9/Mines | Discovered exit to Materials (range 10) 4857 | -9/Mines | Found a damaged Exp. Sensor Array with a note attached 4894 | -9/Mines | Build established: Mutant 4956 | -9/Mines | Deemed a non-threat by the Exiles lab entrance 4959 | -9/Mines | Discovered new exit (range 5) 4972 | -9/Mines | Entered Exiles 4972 | -9/Exiles | Accompanied by 3 allies 5049 | -9/Exiles | Met 8R-AWN 5104 | -9/Exiles | Met EX-HEX 5203 | -9/Exiles | Met EX-BIN 5248 | -9/Exiles | Aligned with FarCom system 5251 | -9/Exiles | Given EX-Vault access code 5385 | -9/Exiles | Opened EX-Vault 5405 | -9/Exiles | Found Cloak of Protection 5470 | -9/Exiles | Warned to stay clear of 0b10 Research branches 5516 | -9/Exiles | Exiles lab attacked by MAIN.C 5675 | -9/Exiles | Discovered new exit (range 12) 5707 | -9/Exiles | Left Exiles lab with Cloak of Protection 5707 | -9/Exiles | Entered Mines 5707 | -8/Mines | Accompanied by 3 allies 5719 | -8/Mines | Destroyed by G-50 Soldier with Heavy Laser Last Messages --------------- 05556_ 8R-AWN: "We've got company!" 05559_ EX-BIN: "Not cool, MAIN.C, I don't even have my SDF Cannon ready..." 05560_ 8R-AWN: "I'll cover you all, get out of here!" 05618_ 8R-AWN: "I have a feeling things are about to get a lot worse here, go go go take the back way out!" 05675_ EXIT=FOUND 05684_ 8R-AWN exits level. LOCATION=UNKNOWN GOAL=ESCAPE 05707_ Receiving FarCom transmissions... 05709_ J5-HVA: "That was close. Too bad in all the rush we got split up from the others." 05709_ Trooper 2a destroyed. 05711_ G-47 Trooper destroyed. 05713_ Trooper 2b destroyed. 05715_ Mercenary 2a destroyed. [Achievement: Back For More] Map ----- +----------------------------------------------------+ | ???????????????????????????????? | | ???????????????????????????????? | | ???????????????????????????????? | | ???????????????????????????????? | | ???????????????????????????????? | | ???????????????????????????????? | | ???????????????????????????????? | | ???????????????????????????????? | | ???????????????????????????????? | | ???????????????????????????????? | | ???????????????????????????????? | | ???????????????????????????????? | | ???????????????????????????????? | | ???????????????????????????????? | | ???????????????????????????????? | | ???????????????????????????????? | | ????????????????????????????#??? | | ??????????????????????????? #??? | | ??????????????????????????? #??? | | ???????????????????????????!#??? | | ??????????????????????????#%#??? | | ????????????????????????## *##?? | | ????????????????????????# gg #?? | | ????????????????????????#=[ #??? | | ???????????????????# ###%%%#??? | | ???????????????????# z @! #?? | | ???????????????????###### #?? | | ????????????????????????## ##?? | | ??????????????????????????###??? | | ???????????????????????????????? | | ???????????????????????????????? | | ???????????????????????????????? | | | | | | | | | | | | | | | | | | | | | | | | | | | | | | | | | | | | | +----------------------------------------------------+ Best States ------------- Heat Dissipation 39 Energy Generation 12 Energy Capacity 265 Matter Stores 300 Matter Capacity 300 Sight Range 16 Terrain Scan Density 10 Armor Coverage 150 Evasion (%) 40 Targeting Accuracy 16 Recoil Reduction 2 Item Schematics ----------------- Utility Shielding | -10/Materials | Hacked Imp. Terrain Scanner | -9/Materials | Scanalyzed Robot Schematics ------------------ None Fabricated ------------ Nothing Repaired ---------- Nothing Alien Tech Used ----------------- None Achievements -------------- Back For More Challenges ------------ None Game ------ Seed PulseElectronThruster Manual? 0 Play Time 00:32:16 Cumulative 67.9 hours Start 2025.07.25 @ 09:54:09 End 2025.07.25 @ 10:26:38 Sessions 1 Manual Loads 0 Difficulty Rogue Special Mode None Game No. 50 Rogue 50 Adventurer 0 Explorer 0 Win Type - Total 0 Types 0/0/0/0/0/0/0/0/0/0 Lore% 48 Gallery% 46 Achievement% 39 Wizard Run 0 Options --------- Layout 1 ASCII 0 Keyboard 0 Movement Numpad Keybinds 0 Fullscreen 1 Font 24/Smallcaps Map View 50x35 Zoom Use 0% Tactical HUD 1 Map Filters NONE Filters NONE Steam 1 RUN: a58e1ee4-f9d9-41be-9ce3-b917aec51027